{"text_format":"2","workbook":"xlsx","n_sheets":2,"sheets":["1. rész","2. rész"],"not_rendered":{"charts":0,"images":0,"macros":0,"external_links":0,"defined_names":0,"comments":0,"pivot_tables":0},"unopened":[],"bounds":{"document_bytes":16777216,"sheet_cells":100000,"run_cost":"one","rows_first":2000,"rows_last":500,"rows_between":2000,"halvings":0,"cell_chars":16384,"cell_head_chars":4096},"cells_cut":0,"cells_raw":0,"read":"whole","date_system":"1900"}

{"sheet":"1. rész","index":0,"n_rows":43,"n_cols":14,"rows_kept":43,"cut":false,"hidden":false,"merged":[[0,2,0,12],[37,0,37,7],[5,3,5,6],[15,3,15,6],[27,3,27,6]]}
[null,null,"10/K/2018/SZTE Háztartási papíráruk és higiéniai termékek beszerzése a Szegedi Tudományegyetem részére"]
[]
[null,"Ajánlattevő neve:"]
[null,"Ajánlattevő címe:"]
["Sorsz.","Termék","Műszaki jellemzők, minimum minőségi követelmények","Megajánlott termék műszaki specifikációja, legalább a műszaki jellemzők (\"C\") oszlopban felsorolt részletezettséggel","Megajánlott termék rendelési cikkszáma","Kiszerelés","Becsült éves  mennyiség","Nettó egységár (Ft/kiszerelési egység)","Nettó összesen","ÁFA mértéke","ÁFA értéke","Bruttó összár","Környezet-védelmi ökocimke","Gyártmány-lap"]
[null,null,null,"Kéztörlőpapírok "]
["1.","Papír kéztörlő \"C\" hajtogatású  ","Papír kéztörlő egy rétegű, \"C\" hajtogatású, vagy azzal egyenértékű. Minősége: 35,6 g/m2 Mérete: kihajtott lap hossza: 30-31,2 cm, kihajtott lap szélessége: 24-25,2 cm méretű lap, natúr színű, 192 lap/csomag. Kiszerelés: 24 csomag/karton. Csak a meglévő H3 adagoló rendszerhez való töltőanyagot fogadunk el. ",null,null,"Csomag",6000,null,{"$f":"H7*G7","v":0},0.27,{"$f":"I7*J7","v":0},{"$f":"I7*(1+J7)","v":0},"IGEN","IGEN"]
["2.","Papír kéztörlő \"Z\" hajtogatású ","Papír kéztörlő egy rétegű, \"Z\" hajtogatású, vagy azzal egyenértékű. Minősége: 34 g/m2 Kihajtott lap hossza: 22,5-24 cm, kihajtott lap szélessége: 22-23 cm. 250 lap/csomag. Kiszerelés: 20 csomag/karton. Csak a meglévő H3 adagoló rendszerhez való töltőanyagot fogadunk el. ",null,null,"Csomag",65000,null,{"$f":"H8*G8","v":0},0.27,{"$f":"I8*J8","v":0},{"$f":"I8*(1+J8)","v":0},"IGEN","IGEN"]
["3.","Hajtogatott kéztörlő papír, multifold ","Papír kéztörlő multifold, vagy azzal egyenértékű. Minősége: 18 g/m2/réteg, totál: 36 g/m2. Kihajtott lap hossza: 21-23,5 cm, kihajtott lap szélessége: 21-22,5 cm, 2 rétegű papír, színe: fehér, mintával ellátott, 237 lap/csomag. Kiszerelés: 20 csomag/karton. Csak a meglévő H2 adagoló rendszerhez való töltőanyagot fogadunk el. ",null,null,"Csomag",2500,null,0,0.27,0,0,"IGEN","IGEN"]
["4.","Hajtogatott kéztörlő papír, \"Z\" hajtogatású ","Papír kéztörlő, 2 rétegű, fehér, puha, levélmintázatú, vagy azzal egyenértékű. Minősége: 20 g/m2/réteg, totál: 40 g/m2. Kihajtott lap hossza: 22,5-24 cm, kihajtott lap szélessége: 24,5-25 cm, 250 lap/csomag. Kiszerelés: 15 csomag/karton. Csak a meglévő H3 adagoló rendszerhez való töltőanyagot fogadunk el. ",null,null,"Csomag",4000,null,0,0.27,0,0,"IGEN","IGEN"]
["5.","Tekercses kéztörlő papír ","Papír kéztörlő tekercs vagy azzal egyenértékű, 2 rétegű, zöld színű. Minősége: 24 g/m2/réteg, totál: 48 g/m2. Tekercs hossza: 150-155 m, Tekercs szélessége: 21-21,5 cm, tekercs átmérője: 19-20 cm. Belső kemény mag: 3,8-4 cm. Kiszerelés: 6 tekercs/karton. Csak a meglévő H1 adagoló rendszerhez való töltőanyagot fogadunk el. ",null,null,"Tekercs",4404,null,0,0.27,0,0,"IGEN","IGEN"]
["6.","Belső mag adagolású tekercses  kéztörlő papír ","Belsőmag-adagolású kéztörlő papír, vagy azzal egyenértékű, fehér színű, 2 rétegű, Minősége: 19,5 g/m2/réteg, totál: 39 g/m2. Tekercs hossza: 75-78 m, tekercs szélessége: 21-22 cm, tekercs átmérője: 14-15 cm. Csak a meglévő M1 adagoló rendszerhez való töltőanyagot fogadunk el. Kiszerelés: 11 tekercs/karton, Belső kemény mag: 7,2-7,5 cm",null,null,"Tekercs",605,null,0,0.27,0,0,"IGEN","IGEN"]
["7.","Belsőmag-adagolású tekercses  kéztörlő papír ","Belsőmag-adagolású kéztörlő papír vagy azzal egyenértékű, natúr fehér színű 1 rétegű, újrahasznosított alapanyagból készült tekercses kéztörlő papír. Minősége: 23,5 g/m2. Tekercs hossza: 120-125 m, tekercs szélessége: 21- 21,5 cm. Tekercs átmérője: 14-14,5 cm. Kiszerelés: 11 tekercs/ karton. Csak a meglévő M1 adagoló rendszerhez való töltőanyagot fogadunk el. ",null,null,"Tekercs",4690,null,0,0.27,0,0,"IGEN","IGEN"]
["8.","Belsőmag-adagolású tekercses kéztörlő papír ","Belsőmag-adagolású kéztörlő papír vagy azzal egyenértékű. Minősége: 19,5 g/m2/réteg, totál: 39 g/m2. Tekercs hossza: 160-165 m, tekercs szélessége: 24- 25 cm, tekercs átmérője: 19-20cm, 2 rétegű, perforált, fehér színű, perforált lap méret: 35*24,5 cm. Belső kemény mag: 7,2 - 7,5 cm. Kiszerelés: 6 tekercs/ karton. Csak a meglévő M2 adagoló rendszerhez való töltőanyagot fogadunk el. ",null,null,"Tekercs",18,null,0,0.27,0,0,"IGEN","IGEN"]
["9.","Belső mag adagolású kéztörlő papír ","Belsőmag-adagolású kéztörlő papír vagy azzal egyenértékű. Minősége: 25 g/m2 Tekercs hossza: 300-310 m, tekercs szélessége: 20 - 21 cm, tekercs átmérője: 19-20 cm, 1 rétegű, sárga színű, nem perforált. Belső kemény mag: 7,2- 7,5 cm. Kiszerelés: 6 tekercs/ karton. Csak a meglévő M2 adagoló rendszerhez való töltőanyagot fogadunk el. ",null,null,"Tekercs",156,null,0,0.27,0,0,"IGEN","IGEN"]
[null,null,null,"Toalett papírok "]
["10.","WC papír nagy tekercs ","WC papír nagy tekercs 1 rétegű, vagy azzal egyenértékű, natúr színű, újrahasznosított alapanyagból készült. Minősége: 26,5 g/m2 Tekercs hossza: 480-485 m, tekercs szélessége: 9-9,5 cm, tekercs átmérője: 25,9-26,5 cm. Belső kemény mag: 5,5 -6,2 cm. Kiszerelés: 6 tekercs/karton. Csak a meglévő T1 adagoló rendszerhez való töltőanyagot fogadunk el. ",null,null,"Tekercs",660,null,{"$f":"G17*H17","v":0},0.27,0,0,"IGEN","IGEN"]
["11.","WC papír nagy tekercs ","WC papír nagy tekercs 2 rétegű, vagy azzal egyenértékű, fehér színű. Minősége: 16 g/m2/réteg, totál: 32 g/m2. Tekercs hossza: 380-385 m, tekercs szélessége: 9-9,5 cm, tekercs átmérője: 25,9-26,5 cm. Belső kemény mag: 5,5 -6,2 cm. Kiszerelés: 6 tekercs/karton. Csak a meglévő T1 adagoló rendszerhez való papírt fogadunk el. ",null,null,"Tekercs",2592,null,{"$f":"G18*H18","v":0},0.27,0,0,"IGEN","IGEN"]
["12.","WC papír közepes tekercs ","WC papír közepes tekercs, vagy azzal egyenértékű,1 rétegű, natúr színű. Minősége: 26,5 g/m2 Tekercs hossza: 240-245 m, tekercs szélessége: 9 -9,5 cm széles, tekercs átmérője: 18,5-19,5 cm. Belső kemény mag: 5,5-6,2 cm. Újrahasznosított alapanyagból készült. Kiszerelés: 12 tekercs/karton. Csak a meglévő T2 adagoló rendszerhez való papírt fogadunk el. ",null,null,"Tekercs",2364,null,0,0.27,0,0,"IGEN","IGEN"]
["13.","WC papír közepes tekercs ","WC papír közepes tekercs, vagy azzal egyenértékű, 2 rétegű, fehér színű, mintával nyomott. Minősége: 16,8 g/m2/réteg, totál: 33,6 g/m2. Tekercs hossza: 170-175 m, tekercs szélessége: 9-9,5 cm. Tekercs átmérője: 18,5-19 cm. Belső kemény mag: 5,9-6,2 cm. Kiszerelés: 12 tekercs/karton. Csak a meglévő T2 adagoló rendszerhez való papírt fogadunk el. ",null,null,"Tekercs",13560,null,0,0.27,0,0,"IGEN","IGEN"]
["14.","WC papír közepes tekercs ","WC papír közepes tekercs, vagy azzal egyenértékű, 3 rétegű, fehér színű. Minősége: 15,5 g/m2/réteg, totál: 46,5 g/m2. Tekercs hossza: 120-125 m, tekercs szélessége: 9,2-9,8 cm, tekercs átmérője: 18,5-19 cm. Belső kemény mag: 5,5-6 cm. Kiszerelés: 12 tekercs/karton. Csak a meglévő T2 adagoló rendszerhez való papírt fogadunk el. ",null,null,"Tekercs",120,null,0,0.27,0,0,"IGEN","IGEN"]
["15.","WC papír kis tekercs","WC papír kis tekercs, vagy azzal egyenértékű, 2 rétegű, fehér színű. Minősége: 17,6 g/m2/réteg, totál: 35,2 g/m2. Tekercs hossza: 30-32 m, tekercs szélessége: 9-9,5 cm, tekercs átmérője: 10-10,5 cm. Belső kemény mag: 4-4,3 cm. Kiszerelés: 8 tekercs/csomag. Csak a meglévő T4 adagoló rendszerhez való papírt fogadunk el.",null,null,"Tekercs",21888,null,0,0.27,0,0,"IGEN","IGEN"]
["16.","WC papír kis tekercs   ","WC papír kis tekercs, vagy azzal egyenértékű, 2 rétegű, fehér színű. Minősége: 17,7 g/m2/réteg, totál: 35,4 g/m2. Tekercs hossza: 32-34 m, tekercs szélessége: 9,2-9,5 cm, tekercs átmérője:12-13 cm. Belső kemény mag: 3,8-4,2 cm. Kiszerelés: 10 tekercs/csomag. Csak a meglévő T4 adagoló rendszerhez való papírt fogadunk el.",null,null,"Tekercs",4900,null,0,0.27,0,0,"IGEN","IGEN"]
["17.","WC papír kis tekercs  ","WC papír kis tekercs, vagy azzal egyenértékű, 4 rétegű, fehér színű. Minősége: 15 g/m2/réteg, totál: 60 g/m2. Tekercs hossza: 19-20 m, tekercs szélessége: 9,5-9,8 cm, tekercs átmérője: 11,5-12 cm. Belső kemény mag: 3,8-4,2 cm. Kiszerelés: 6 tekercs/csomag. Csak a meglévő T4 adagoló rendszerhez való papírt fogadunk el. ",null,null,"Tekercs",1950,null,0,0.27,0,0,"IGEN","IGEN"]
["18.","Wc papír belső mag adagolású ","WC papír, tekercses, vagy azzal egyenértékű, belsőmag-adagolású, extra fehér színű és puha, 2 rétegű. Minősége: 16,5 g/m2/réteg, totál: 33 g/m2. Tekercs hossza: 111-114 m, tekercs szélessége: 13- 3,5 cm, tekercs átmérője: 14,5- 15 cm, 620 lapos. Belső kemény mag: 4-4,4 cm. Kiszerelés: 12 tekercs/csomag Csak a meglévő T9 adagoló rendszerhez való papírt fogadunk el. ",null,null,"Tekercs",10368,null,0,0.27,0,0,"IGEN","IGEN"]
["19.","WC papír hajtogatott ","WC papír hajtogatott, prémium minőségű, vagy azzal egyenértékű, 2 rétegű fehér. Minősége: 17 g/m2/réteg, totál: 34 g/m2. Kihajtott lap hossza: 18,5- 19cm, kihajtott lap szélessége: 11-11,5 cm, 252 lap/csomag. Kiszerelés: 30 csomag/ karton. Csak a meglévő T3 adagoló rendszerhez való papírt fogadunk el.",null,null,"Csomag",1296,null,0,0.27,0,0,"IGEN","IGEN"]
["20.","WC papír hajtogatott ","WC papír hajtogatott, vagy azzal egyenértékű, 2 rétegű fehér. Minősége: 16,8 g/m2/réteg, totál: 33,6 g/m2. Kihajtott lap hossza: 18,5-19 cm, kihajtott lap szélessége: 11-11,5 cm, 252 lap/ csomag. Kiszerelés: 30 csomag/karton. Csak a meglévő T3 adagoló rendszerhez való papírt fogadunk el.  ",null,null,"Csomag",3456,null,0,0.27,0,0,"IGEN","IGEN"]
[null,null,null,"Szalvéták"]
["21.","Standard szalvéta színes ","Standard szalvéta, vagy azzal egyenértékű, ZÖLD. Minősége: 15,5 g/m2/réteg, totál: 31 g/m2. Kihajtott lap mérete: 32-33 cm x 32-33 cm, 2 rétegű, 250 lap/csomag",null,null,"Csomag",45,null,{"$f":"G29*H29","v":0},0.27,0,0,null,"IGEN"]
["22.","Standard szalvéta színes ","Standard szalvéta, vagy azzal egyenértékű, BARACK. Minősége: 15,5 g/m2/réteg, totál: 31 g/m2. Kihajtott lap mérete: 32- 33 cm x 32-33 cm, 2 rétegű, 250 lap/csomag",null,null,"Csomag",50,null,{"$f":"G30*H30","v":0},0.27,0,0,null,"IGEN"]
["23.","Standard szalvéta fehér ","Standard szalvéta, vagy azzal egyenértékű, FEHÉR. Minősége: 15,5 g/m2/réteg, totál: 31 g/m2. Kihajtott lap mérete: 32- 33 cm x 32-33 cm, 2 rétegű, 250 lap/csomag",null,null,"Csomag",25,null,0,0.27,0,0,null,"IGEN"]
["24.","Nagy kiszerelésű szalvéta","Szalvéta egy rétegű, vagy azzal egyenértékű. Minősége: 16,2 g/m2 Lap mérete: 14,5- 15 cm x 14,5-15 cm, 2000 lap/csomag, 4 csomag/karton ",null,null,"Csomag",150,null,0,0.27,0,0,null,"IGEN"]
["25.","Szalvéta adagolóba helyezhető","Adagolóba helyezhető szalvéta, vagy azzal egyenértékű, fehér színben, 1 rétegű. Minősége: 17 g/m2, kihajtott lap hossza: 32-33 cm, kihajtott lap szélessége: 29-30 cm, 250 lap/csomag. Kiszerelés: 16 csomag/karton. Csak az N1 adagoló rendszerhez való terméket fogadunk el. ",null,null,"Csomag",67,null,0,0.27,0,0,null,"IGEN"]
["26.","Papírszalvéta adagolós ","Adagolóba helyezhető szalvéta, vagy azzal egyenértékű, fehér színben, 1 rétegű. Minősége: 16,5 g/m2 kihajtott lap hossza: 29-30 cm, kihajtott lap szélessége: 24-25 cm, 250 lap/csomag. Kiszerelés: 36 csomag/karton. Csak az N2 adagoló rendszerhez való terméket fogadunk el. ",null,null,"Csomag",15,null,0,0.27,0,0,null,"IGEN"]
["27.","Emblémázott szalvéta","Logóval ellátott szalvéta, fehér színű, 2 rétegű vagy azzal egyenértékű. Minősége: 15,5 g/m2/réteg, totál: 31 g/m2. Kihajtott lap hossza: 23,5-24 cm, kihajtott lap szélessége: 23,5- 24 cm, 31 g/m2 teljes grammsúlyú. 200 db/csomag. Kiszerelés: 20 csomag/karton. Az ár tartalmazza az emblémázás költségét és a klisét is.",null,null,"Csomag",120,null,0,0.27,0,0,null,"igen,  az emblémázás nélküli termékre vonatkozóan"]
["28.","Intimbetét-gyűjtő tasak","Műanyag tasak, vagy azzal egyenértékű, intim betétek higiénikus gyűjtésére. Kiszerelés 25 db/ doboz. Csak a B5 rendszerű intimbetét-gyűjtőbe való terméket fogadjuk el. A 25 darabot tartalmazó doboz mérete: 127x87x15 mm (csak ez fér a meglévő adagolókba)",null,null,"Doboz",800,null,0,0.27,0,0,null,"IGEN"]
["29.","Több célútörlőpapír ","Többcélú törlőpapír, vagy azzal egyenértékű, 2 rétegű, 750 lap, perforált, fehér színű. Minősége: 20 g/m2/réteg, totál: 40 g/m2. Tekercs hossza: 255-260 m, tekercs szélessége: 23-24 cm, tekercs átmérője: 26-26,5 cm. Belső kemény mag: 7,1 cm. Kiszerelés: 2 tekercs/karton A W1/W2 adagoló rendszerhez való terméket fogadunk el. ",null,null,"Tekercs",86,null,0,0.27,0,0,null,"IGEN"]
["Összesen: ",{"$nulls":7},{"$f":"SUM(I7:I37)","v":0},null,{"$f":"SUM(K7:K37)","v":0},{"$f":"SUM(L7:L37)","v":0}]
[]
[]
[null,"Dátum:"]
[{"$nulls":7},"……………….."]
[{"$nulls":7},"cégszerű aláírás"]

{"sheet":"2. rész","index":1,"n_rows":31,"n_cols":14,"rows_kept":31,"cut":false,"hidden":false,"merged":[[0,2,0,12],[26,0,26,3],[5,0,5,13],[25,0,25,7],[18,3,18,7]]}
[null,null,"10/K/2018/SZTE Háztartási papíráruk és higiéniai termékek beszerzése a Szegedi Tudományegyetem részére"]
[]
[null,"Ajánlattevő neve:"]
[null,"Ajánlattevő címe:"]
["Sorsz.","Termék","Műszaki jellemzők","Megajánlott termék műszaki specifikációja, legalább a műszaki jellemzők (\"C\") oszlopban felsorolt részletezettséggel","Megajánlott termék rendelési cikkszáma","Kiszerelés","Becsült éves  mennyiség ","Nettó egységár (Ft/kiszerelési egység)","Nettó összár","ÁFA mértéke","ÁFA értéke","Bruttó összár","Egyéb előírás","Gyártmány- vagy adatlap"]
["Higiéniai adagolók"]
["1.","Szappan-adagoló","1000 ml űrtartalmú fehér, műanyag zárható, ütésálló szappanadagoló, vagy azzal egyenértékű. S1 rendszer. Mérete: 29,1*11,2*11,4 cm ",null,null,"Darab",65,null,{"$f":"G7*H7","v":0},0.27,{"$f":"I7*J7","v":0},{"$f":"I7*(1+J7)","v":0},null,"IGEN"]
["2.","Szappan-adagoló","475 ml űrtartalmú fehér, műanyag zárható, ütésálló szappanadagoló, vagy azzal egyenértékű. S2 rendszer. Mérete:20,6*11,2*11,4 cm ",null,null,"Darab",55,null,{"$f":"G8*H8","v":0},0.27,{"$f":"I8*J8","v":0},{"$f":"I8*(1+J8)","v":0},null,"IGEN"]
["3.","Szappan-adagoló ","1000 ml űrtartalmú fehér, zárható, műanyag, ütésálló karos szappanadagoló, vagy azzal egyenértékű. S1 rendszer. Mérete: 29,1*11,2*11,4 cm",null,null,"Darab",45,null,0,0.27,0,0,null,"IGEN"]
["4.","Szappan-adagoló","1000 ml űrtartalmú fehér, műanyag zárható, ütésálló habszappan-adagoló, vagy azzal egyenértékű. S4 rendszer. Mérete: 28,6*11,3*10,5 cm ",null,null,"Darab",18,null,0,0.27,0,0,null,"IGEN"]
["5.","Toalettpapír tartó","Fehér, műanyag, zárható toalettpapír tartó, vagy azzal egyenértékű. Mérete: 15,8*28,6*15,3 cm. Normál kis tekercses toalett papírhoz, 2 tekercses tároló kapacitás. T4 rendszer",null,null,"Darab",17,null,0,0.27,0,0,null,"IGEN"]
["6.","Toalettpapír tartó","Fehér, műanyag, zárható toalett papír tartó, vagy azzal egyenértékű, mérete: 27,5*34,5*13,2 cm. Közepes tekercses toalett papírhoz, tartaléktekercses funkcióval. T2 rendszer",null,null,"Darab",104,null,0,0.27,0,0,null,"IGEN"]
["7.","Toalettpapír tartó","Fehér, műanyag, zárható toalett papír tartó vagy azzal egyenértékű. Mérete: 36*43,7*13,3 cm. Nagy tekercses toalett papírhoz, tartaléktekercses funkcióval. T1 rendszer.",null,null,"Darab",65,null,0,0.27,0,0,null,"IGEN"]
["8.","Toalettpapír tartó","Fehér, műanyag, zárható toalettpapír tartó vagy azzal egyenértékű. Mérete: 27,1*15,9*12,8 cm. Laphajtogatott toalett papírhoz. T3 rendszer",null,null,"Darab",4,null,0,0.27,0,0,null,"IGEN"]
["9.","Toalettpapír tartó","Fehér, műanyag, zárható toalettpapír tartó vagy azzal egyenértékű. Mérete: 21,9*21,8*15,5 cm. Belsőmag-adagolású toalett papírhoz. T9 rendszer",null,null,"Darab",30,null,0,0.27,0,0,null,"IGEN"]
["10.","Intimbetét-gyűjtő tartó","fehér, műanyag, intimbetét-gyűjtő tasak tartó, vagy azzal egyenértékű. Mérete: 10*14*3,5 cm, B5 rendszer",null,null,"Darab",40,null,0,0.27,0,0,null,"IGEN"]
["11.","Kéztörlőpapír tartó nagy kapacitású ","Fehér, műanyag, zárható, kéztörlőpapír-tartó, vagy azzal egyenértékű. Mérete: 43,9*33,3*13,6 cm. Laphajtogatott kéztörlő papírhoz. H3 rendszer",null,null,"Darab",75,null,0,0.27,0,0,null,"IGEN"]
["12.","Kéztörlőpapír tartó normál kapacitású ","Fehér, műanyag, zárható, kéztörlőpapír-tartó vagy azzal egyenértékű. Mérete: 29,1*33,2*13,5 cm. Laphajtogatott kéztörlő papírhoz. H3 rendszer",null,null,"Darab",195,null,0,0.27,0,0,null,"IGEN"]
[null,null,null,"Folyékony szappanok"]
["13.","Folyékony szappan 5 literes utántöltő ","Folyékony halmazállapotú, gyöngyházfényű folyékony szappan, vagy azzal egyenértékű, pH értéke 5-6 20 °C fokon",null,null,"Kanna (5 liter)",201,null,{"$f":"G20*H20","v":0},0.27,0,0,"CPNP reg. Adatlap és  \nbiztonsági adatlap ","IGEN"]
["14.","Folyékony szappan, 1000 ml","Folyékony szappan, 1000 ml, tusolásra és hajmosásra is alkalmas, vagy azzal egyenértékű. Kiszerelés: 6*1000 ml. Csak az S1 adagoló rendszerhez való terméket fogadunk el. ",null,null,"1 liter",1980,null,{"$f":"G21*H21","v":0},0.27,0,0,"CPNP reg. Adatlap és  \nbiztonsági adatlap ","IGEN"]
["15.","Kézfertőtlenítő folyékony szappan ","Illatmentes folyékony szappan, 1000 ml, antibakteriális hatásspektrum: baktericid (MRSA) fungicid, virucid, tuberkulocid, vagy azzal egyenértékű. Kiszerelés: 6*1000 ml. Csak az S1 adagoló rendszerhez való terméket fogadunk el.",null,null,"1 liter",66,null,0,0.27,0,0,"CPNP reg. Adatlap, OTH engedély, biztonsági adatlap","IGEN"]
["16.","Kézkímélő habszappan","Illatmentes folyékony szappan, 1000 ml, halványsárga színű vagy azzal egyenértékű. Kiszerelés: 6*1000 ml. Csak az S4 adagoló rendszerhez való terméket fogadunk el. ",null,null,"1 liter",120,null,0,0.27,0,0,"CPNP reg. Adatlap és  \nbiztonsági adatlap ","IGEN"]
["17.","Folyékony szappan, 475 ml","Folyékony szappan, 475 ml, tusolásra és hajmosásra is alkalmas vagy azzal egyenértékű. Kiszerelés: 8*475ml. Csak az S2 adagoló rendszerhez való terméket fogadunk el.  ",null,null,"0,475 l",672,null,0,0.27,0,0,"CPNP reg. Adatlap és  \nbiztonsági adatlap ","IGEN"]
["18.","Alkoholos kézfertőtlenítő gél, 1000 ml","Kézfertőtlenítő hatású, kéztisztítás után víz hozzávétele nélkül használandó vagy azzal egyenértékű gél, 1000 ml. Baktericid, mycobactericid, virucid és fungicid hatású Kiszerelés: 6*1000 ml. Csak az S1 adagoló rendszerhez való terméket fogadunk el. ",null,null,"1 liter",102,null,0,0.27,0,0,"CPNP reg. Adatlap, OTH engedély, biztonsági adatlap","IGEN"]
["Összesen: ",{"$nulls":7},{"$f":"SUM(I7:I25)","v":0},null,{"$f":"SUM(K7:K25)","v":0},{"$f":"SUM(L7:L25)","v":0}]
[]
[]
[null,"Dátum:"]
[{"$nulls":7},"……………………….."]
[{"$nulls":7},"cégszerű aláírás"]